{"text_format":"1","workbook":"xlsx","n_sheets":5,"sheets":["2024-2025","Page 1 (2)","2025 26 - v0","FFB 2026-2027","LMB 2026-2027"],"not_rendered":{"charts":0,"images":1,"macros":0,"external_links":0,"defined_names":3,"comments":0,"pivot_tables":0},"unopened":[],"bounds":{"document_bytes":16777216,"sheet_cells":100000,"rows_first":2000,"rows_last":500,"rows_between":2000,"halvings":0,"cell_chars":16384,"cell_head_chars":4096},"cells_cut":0,"cells_raw":0,"read":"whole","date_system":"1900"}

{"sheet":"2024-2025","index":0,"n_rows":41,"n_cols":46,"rows_kept":41,"cut":false,"hidden":true,"merged":[[39,42,39,45],[37,1,37,2],[38,0,40,2],[39,3,39,6],[39,7,39,10],[39,11,39,15],[39,16,39,19],[40,3,40,49],[39,20,39,23],[39,24,39,27],[39,28,39,32],[39,33,39,36],[39,37,39,41],[34,0,36,0],[34,1,34,2],[34,32,36,32],[34,41,36,41],[35,1,35,2],[36,1,36,2],[26,1,26,2],[29,43,29,44],[30,1,30,2],[31,0,33,0],[31,1,31,2],[31,31,33,31],[31,38,33,38],[32,1,32,2],[33,1,33,2],[27,1,27,2],[28,0,30,0],[28,1,28,2],[29,1,29,2],[29,35,30,35],[20,42,21,42],[21,1,21,2],[22,0,27,0],[22,1,22,2],[22,22,22,23],[23,1,23,2],[23,12,25,12],[23,16,25,16],[23,22,25,22],[23,25,25,25],[23,30,25,30],[23,33,25,33],[23,36,25,36],[24,1,24,2],[25,1,25,2],[26,42,27,42],[17,0,21,0],[17,1,17,2],[20,1,20,2],[17,40,17,41],[18,1,18,2],[18,15,19,15],[18,20,19,20],[18,24,19,24],[18,28,19,28],[18,34,19,34],[19,1,19,2],[10,1,10,2],[11,1,11,2],[12,0,16,0],[12,1,12,2],[12,38,12,40],[13,1,13,2],[13,11,15,11],[13,14,15,14],[13,18,15,18],[13,23,15,23],[13,27,16,27],[14,1,14,2],[15,1,15,2],[16,1,16,2],[5,26,6,26],[6,1,6,2],[7,1,7,2],[7,42,8,42],[8,1,8,2],[9,1,9,2],[1,37,1,41],[1,42,1,45],[3,0,11,0],[3,1,3,2],[4,1,4,2],[5,1,5,2],[5,10,6,10],[5,13,6,13],[5,17,6,17],[5,22,6,22],[0,0,2,2],[0,3,0,49],[1,3,1,6],[1,7,1,10],[1,11,1,15],[1,16,1,19],[1,20,1,23],[1,24,1,27],[1,28,1,32],[1,33,1,36]]}
["Calendrier LMB\n2024-2025",null,null," Les matchs de compétition se joueront le samedi pour les tournois, les finales de Ligue se dérouleront le samedi et le dimanche, incluant tous les modes de jeu."]
[null,null,null,null,null,null,null,"Octobre",null,null,null,"Novembre",null,null,null,null,"Decembre",null,null,null,"Janvier",null,null,null,"Fevrier",null,null,null,"Mars",null,null,null,null,"Avril",null,null,null,"Mai",null,null,null,null,"Juin"]
[null,null,null,7,14,21,28,5,12,19,26,2,9,16,23,30,7,14,21,28,4,11,18,25,1,8,15,22,1,8,15,22,29,5,12,19,26,3,10,17,24,31,7,14,21,28]
["Partie Libre","Dames \"Libre\"",null,null,null,null,null,null,null,null,null,null,null,"TN1",null,null,null,null,null,null,null,null,null,null,null,null,"TN2",null,null,null,null,null,null,null,"TN3",null,null,null,null,null,null,null,"N"]
[null,"Dames \"3Bandes\""]
[null,"Nationale 1",null,null,null,null,null,null,null,null,"TN1",null,null,"TN2",null,null,null,"TN3",null,null,null,null,"TN4",null,null,null,"L",null,null,"N"]
[null,"Nationale 3",null,null,null,null,null,null,null,null,null,null,null,null,null,null,null,null,null,null,null,null,null,null,null,null,null,null,null,"N"]
[null,"Régionale 1",null,null,null,null,null,null,null,null,null,null,null,null,null,null,null,null,null,null,null,null,null,null,null,null,null,null,null,null,null,null,null,null,null,null,null,null,null,null,"D",null,"L",null,null,"CP"]
[null,"Régionale 2",null,null,null,null,null,null,null,null,null,null,null,null,null,null,null,null,null,null,null,null,null,null,null,null,null,null,null,null,null,null,null,null,null,null,null,null,null,null,"D",null,null,null,null,"CP"]
[null,"Régionale 3",null,null,null,null,null,null,null,null,null,null,null,null,null,null,null,null,null,null,null,null,null,null,null,null,null,null,null,null,null,"D",null,"L"]
[null,"Régionale 4",null,null,null,null,null,null,null,null,null,null,null,null,null,null,null,null,null,null,null,null,null,null,null,null,null,null,null,null,null,"D",null,"L"]
[null,"Régionale 4 Billes"]
["Cadre","47/2 Master",null,null,null,null,"TN1",null,null,null,null,null,null,null,null,null,"TN2",null,null,null,null,null,null,null,null,null,null,null,"TN3",null,null,null,null,null,"N",null,null,"N","71/2 La Garde"]
[null,"47/2 Nat. 1",null,null,null,null,null,null,null,null,null,"TN1",null,null,"TN2",null,null,null,"TN3",null,null,null,null,"TN4",null,null,null,"L",null,null,"N"]
[null,"47/2 Nat. 2",null,null,null,null,null,null,null,null,null,null,null,null,null,null,null,null,null,null,null,null,null,null,null,null,null,null,null,null,"N"]
[null,"42/2 Nat. 3",null,null,null,null,null,null,null,null,null,null,null,null,null,null,null,null,null,null,null,null,null,null,null,null,null,null,null,null,"N"]
[null,"42/2 Rég. 1",null,null,null,null,null,null,null,null,null,null,null,null,null,null,null,null,null,null,null,null,null,null,null,"D"]
["1 Bande","Master",null,null,null,null,null,null,null,null,null,null,"TN1",null,null,null,null,null,null,null,null,null,null,null,null,"TN2",null,null,null,null,null,null,null,"TN3",null,null,null,null,null,"N","Nice"]
[null,"Nationale 1",null,null,null,null,null,null,null,null,null,null,null,null,null,"TN1",null,null,null,null,"TN2",null,null,null,"TN3",null,null,null,"TN4",null,null,null,null,null,"L",null,null,null,null,"N"]
[null,"Nationale 3",null,null,null,null,null,null,null,null,null,null,null,null,null,null,null,null,null,null,null,null,null,null,null,null,null,null,null,null,null,null,null,null,null,null,null,null,null,"N"]
[null,"Régionale 1",null,null,null,null,null,null,null,null,null,null,null,null,null,null,null,null,null,null,null,null,null,null,null,null,null,null,null,null,null,null,null,null,null,null,null,null,null,null,"D",null,"L",null,null,"CP"]
[null,"Régionale 2",null,null,null,null,null,null,null,null,null,null,null,null,null,null,null,null,null,null,null,null,null,null,null,null,null,null,null,null,null,null,null,null,null,null,null,null,null,null,"D"]
["3 Bandes","Master",null,null,null,null,null,null,"TN1",null,null,null,null,null,"TN2",null,null,null,null,null,null,"TN3","Frejus",null,null,null,"TN4",null,null,null,null,"TN5",null,null,null,null,null,null,"N"]
[null,"Nationale 1",null,null,null,null,null,null,null,null,null,null,"TN1",null,null,null,"TN2",null,null,null,null,null,"TN3",null,null,"TN4",null,null,null,null,"TN5",null,null,"TN6",null,null,"L",null,null,null,"N"]
[null,"Nationale 2",null,null,null,null,null,null,null,null,null,null,null,null,null,null,null,null,null,null,null,null,null,null,null,null,null,null,null,null,null,null,null,null,null,null,null,null,null,null,"N"]
[null,"Nationale 3",null,null,null,null,null,null,null,null,null,null,null,null,null,null,null,null,null,null,null,null,null,null,null,null,null,null,null,null,null,null,null,null,null,null,null,null,null,null,"N"]
[null,"Régionale 1",null,null,null,null,null,null,null,null,null,null,null,null,null,null,null,null,null,null,null,null,null,null,null,null,null,null,null,null,null,null,null,null,null,null,null,null,null,null,"D",null,"L",null,null,"CP"]
[null,"Régionale 2",null,null,null,null,null,null,null,null,null,null,null,null,null,null,null,null,null,null,null,null,null,null,null,null,null,null,null,null,null,null,null,null,null,null,null,null,null,null,"D"]
["5 Quilles","Master",null,null,null,null,null,null,null,"TN1",null,null,null,"TN2",null,null,null,null,null,null,null,"TN3",null,null,null,"TN4",null,null,null,"TN5",null,null,null,null,null,null,null,"N"]
[null,"Nationale 1",null,null,null,null,null,null,null,null,null,null,null,null,null,null,null,null,null,null,null,null,null,null,null,null,null,null,null,null,null,null,null,null,null,"L",null,null,null,null,null,null,"N","Frejus"]
[null,"Régionale 1"]
["Jeux de\nSéries","Division 3",null,null,null,null,null,null,null,null,null,null,null,null,null,null,null,null,null,null,null,null,null,null,null,null,null,null,null,null,null,"J1",null,null,null,null,null,null,"L",null,null,null,null,"N"]
[null,"Division 4",null,null,null,null,null,null,null,null,null,null,null,null,null,null,null,null,null,null,null,null,null,null,null,null,null,null,null,null,null,null,null,null,null,null,null,null,null,null,null,null,null,"N"]
[null,"Division 5",null,null,null,null,null,null,null,null,null,null,null,null,null,null,null,null,null,null,null,null,null,null,null,null,null,null,null,null,null,null,null,null,null,null,null,null,null,null,null,null,null,"N"]
["Equipe 3\nBandes","Division 3",null,null,null,null,null,null,null,null,null,null,null,null,null,null,null,null,null,null,null,null,null,null,null,null,null,null,null,null,null,null,"J1",null,null,null,null,null,null,null,null,"L",null,null,"N"]
[null,"Division 4",null,null,null,null,null,null,null,null,null,null,null,null,null,null,null,null,null,null,null,null,null,null,null,null,null,null,null,null,null,null,null,null,null,null,null,null,null,null,null,null,null,null,"N"]
[null,"Division 5",null,null,null,null,null,null,null,null,null,null,null,null,null,null,null,null,null,null,null,null,null,null,null,null,null,null,null,null,null,null,null,null,null,null,null,null,null,null,null,null,null,null,"N"]
[null,"Artistisque",null,null,null,null,null,null,null,null,null,null,null,null,null,null,null,"TN"]
["édition-2",null,null,7,14,21,28,5,12,19,26,2,9,16,23,30,7,14,21,28,4,11,18,25,1,8,15,22,1,8,15,22,29,5,12,19,26,3,10,17,24,31,7,14,21,28]
[null,null,null,"Septembre",null,null,null,"Octobre",null,null,null,"Novembre",null,null,null,null,"Decembre",null,null,null,"Janvier",null,null,null,"Fevrier",null,null,null,"Mars",null,null,null,null,"Avril",null,null,null,"Mai",null,null,null,null,"Juin"]
[null,null,null,"Les matchs de compétition se joueront le samedi pour les tournois, les finales de Ligue se dérouleront le samedi et le dimanche, incluant tous les modes de jeu."]

{"sheet":"Page 1 (2)","index":1,"n_rows":46,"n_cols":57,"rows_kept":46,"cut":false,"hidden":true,"merged":[[36,0,46,0],[36,1,37,2],[36,3,37,32],[37,40,38,56],[38,1,39,2],[32,0,33,2],[32,3,33,3],[32,39,32,40],[32,52,33,57],[33,4,33,7],[33,8,33,11],[33,12,33,16],[33,17,33,20],[33,21,33,24],[33,25,33,28],[45,1,46,2],[45,3,46,32],[38,3,39,32],[40,1,40,2],[40,3,40,32],[41,1,42,2],[41,3,42,32],[42,35,45,54],[43,1,43,2],[29,39,29,40],[29,52,29,53],[30,39,30,40],[30,52,30,53],[31,39,31,40],[31,52,31,53],[33,29,33,33],[33,34,33,37],[33,38,33,43],[33,44,33,47],[33,48,33,51],[43,3,43,32],[44,1,44,2],[44,3,44,32],[22,39,22,40],[22,52,22,53],[23,39,23,40],[23,52,23,53],[24,39,24,40],[24,52,24,53],[10,20,31,20],[10,24,12,24],[10,39,10,40],[10,52,10,53],[16,52,16,53],[17,39,17,40],[17,52,18,53],[18,39,18,40],[25,39,25,40],[25,52,25,53],[26,39,26,40],[26,52,26,53],[27,39,27,40],[27,52,27,53],[28,39,28,40],[28,52,28,53],[10,54,31,57],[11,39,11,40],[11,52,11,53],[12,39,12,40],[12,52,12,53],[16,39,16,40],[13,21,15,21],[13,39,13,40],[13,52,13,53],[14,39,14,40],[14,52,14,53],[15,39,15,40],[15,52,15,53],[19,39,19,40],[19,52,19,53],[20,39,20,40],[20,52,20,53],[21,39,21,40],[16,22,18,22],[16,26,18,26],[16,31,18,31],[21,52,21,53],[22,23,24,23],[22,28,24,28],[10,0,31,0],[10,1,12,1],[10,7,12,7],[10,11,12,11],[10,15,12,15],[10,19,12,19],[13,1,15,1],[13,4,15,4],[13,8,15,8],[13,12,15,12],[13,17,15,17],[22,1,24,1],[22,6,24,6],[22,10,24,10],[19,1,21,1],[16,1,18,1],[16,9,18,9],[16,16,18,16],[22,14,24,14],[22,18,24,18],[25,1,28,1],[29,1,31,1],[5,56,9,57],[6,4,8,7],[6,8,8,9],[6,10,8,11],[6,12,8,16],[6,17,8,18],[6,19,8,20],[6,21,8,24],[6,26,6,28],[6,30,7,30],[5,34,5,37],[5,38,5,43],[5,44,5,47],[5,48,5,51],[5,52,9,53],[5,54,9,55],[9,39,9,40],[7,25,7,26],[7,27,7,28],[7,29,8,29],[7,35,7,36],[7,37,8,37],[8,25,8,27],[8,34,8,35],[0,3,3,51],[5,0,9,2],[5,3,9,3],[5,4,5,7],[5,8,5,11],[5,12,5,16],[5,17,5,20],[5,21,5,24],[5,25,5,28],[5,29,5,33],[6,38,7,38],[6,39,8,43],[6,44,8,47],[6,48,8,51],[6,31,8,33],[6,34,6,36]]}
[null,null,null,"CALENDRIER FÉDÉRAL & LMB\nDE LA DISCIPLINE CARAMBOLE - 2025/2026"]
[null,null,null,null,null,null,null,null,null,null,null,null,null,null,null,null,null,null,null,null,null,null,null,null,null,null,null,null,null,null,null,null,null,null,null,null,null,null,null,null,null,null,null,null,null,null,null,null,null,null,null,null,"Édition 00 -06/06/2025"]
[]
[]
[]
["Zone A : Nouv.Aqu / Bou.Fra-Com / Auv.Rhô-Alp\nZone B : HdF / Nor / Bret / PdL / C.VdL / G.Est / PACA\nZone C : Île de FrancedF / Occitanie",null,null,null,"SEPTEMBRE",null,null,null,"OCTOBRE",null,null,null,"NOVEMBRE",null,null,null,null,"DECEMBRE",null,null,null,"JANVIER",null,null,null,"FEVRIER",null,null,null,"MARS",null,null,null,null,"AVRIL",null,null,null,"MAI",null,null,null,null,null,"JUIN",null,null,null,"JUILLET",null,null,null,"Championnats\nde France",null,"Championnats\nd'Europe",null,"Championnats\ndu Monde"]
[]
[]
[]
[null,null,null,null,"07",14,21,28,"05",12,19,26,"02","09",16,23,30,"07",14,21,28,"04",11,18,25,"01","08",15,22,"01","08",15,22,29,"05",12,19,26,"03",10,null,17,24,31,"07",14,21,28,"05",12,19,26]
["CATEGORIES NATIONALES","LIBRE","LIBRE - NATIONALE 1",null,null,null,null,"T1",null,null,null,"T2",null,null,null,"T3",null,null,null,"T4","NOEL & JOUR DE L'AN",null,null,null,"T5",null,null,null,null,"L",null,null,null,"N"]
[null,null,"LIBRE - NATIONALE 2",null,null,null,null,null,null,null,null,null,null,null,null,null,null,null,null,null,null,null,null,null,null,null,null,null,null,"L",null,null,null,"N"]
[null,null,"LIBRE - NATIONALE 3",null,null,null,null,null,null,null,null,null,null,null,null,null,null,null,null,null,null,null,null,null,null,null,null,null,null,"L",null,null,null,"N"]
[null,"CADRE","47/2 - NATIONALE 1",null,"T1",null,null,null,"T2",null,null,null,"T3",null,null,null,null,"T4",null,null,null,"T5",null,null,null,null,null,"L",null,null,"N"]
[null,null,"47/2 - NATIONALE 2",null,null,null,null,null,null,null,null,null,null,null,null,null,null,null,null,null,null,null,null,null,null,null,null,"L",null,null,"N"]
[null,null,"47/2 - NATIONALE 3",null,null,null,null,null,null,null,null,null,null,null,null,null,null,null,null,null,null,null,null,null,null,null,null,"L",null,null,"N"]
[null,"BANDE","1 BANDE - NATIONALE 1",null,null,null,null,null,null,"T1",null,null,null,null,null,null,"T2",null,null,null,null,null,"T3",null,null,null,"T4",null,null,null,null,"T5",null,null,null,null,"L",null,null,null,null,"N"]
[null,null,"1 BANDE - NATIONALE 2",null,null,null,null,null,null,null,null,null,null,null,null,null,null,null,null,null,null,null,null,null,null,null,null,null,null,null,null,null,null,null,null,null,"L",null,null,null,null,"N"]
[null,null,"1 BANDE - NATIONALE 3",null,null,null,null,null,null,null,null,null,null,null,null,null,null,null,null,null,null,null,null,null,null,null,null,null,null,null,null,null,null,null,null,null,"L",null,null,null,null,"N"]
[null,"JDS","JDS FEDERALE 2",null,null,null,null,null,null,null,null,null,null,null,null,null,null,null,null,null,null,null,null,null,null,null,null,null,null,null,null,null,null,null,null,null,null,"L",null,null,null,null,"E.N",null,null,"N"]
[null,null,"JDS FEDERALE 3",null,null,null,null,null,null,null,null,null,null,null,null,null,null,null,null,null,null,null,null,null,null,null,null,null,null,null,null,null,null,null,null,null,null,"L",null,null,null,null,"E.N",null,null,"N"]
[null,null,"JDS FEDERALE 4",null,null,null,null,null,null,null,null,null,null,null,null,null,null,null,null,null,null,null,null,null,null,null,null,null,null,null,null,null,null,null,null,null,null,"L",null,null,null,null,"E.N",null,null,"N"]
[null,"3BANDS","3 BANDES - NATIONALE 1",null,null,null,"T1",null,null,null,"T2",null,null,null,"T3",null,null,null,"T4",null,null,null,null,"T5",null,null,null,null,"T6",null,null,null,"L",null,null,"N"]
[null,null,"3 BANDES - NATIONALE 2",null,null,null,null,null,null,null,null,null,null,null,null,null,null,null,null,null,null,null,null,null,null,null,null,null,null,null,null,null,"L",null,null,"N"]
[null,null,"3 BANDES - NATIONALE 3",null,null,null,null,null,null,null,null,null,null,null,null,null,null,null,null,null,null,null,null,null,null,null,null,null,null,null,null,null,"L",null,null,"N"]
[null,"JD3BAND","3B TOP LIGUE 2",null,null,null,null,null,"J1",null,null,null,null,null,null,null,null,"J2",null,null,null,null,null,null,null,"J3",null,null,null,null,null,null,null,null,"J4",null,null,null,null,null,null,null,null,null,null,null,"N"]
[null,null,"3B FEDERALE 3",null,null,null,null,null,null,"J1",null,null,null,null,null,null,null,null,"J2",null,null,null,null,null,null,null,"J3",null,null,null,null,null,"J4",null,null,null,null,null,null,null,null,null,null,null,null,null,"N"]
[null,null,"3B FEDERALE 4",null,null,null,null,null,null,null,null,null,null,null,null,null,null,null,null,null,null,null,null,null,null,null,null,null,null,null,null,null,null,null,null,null,null,null,"L",null,null,null,null,"E.N",null,null,"N"]
[null,null,"3B FEDERALE 5",null,null,null,null,null,null,null,null,null,null,null,null,null,null,null,null,null,null,null,null,null,null,null,null,null,null,null,null,null,null,null,null,null,null,null,"L",null,null,null,null,"E.N",null,null,"N"]
[null,"5QUILLS","5 QUILLES - DIVISION 2",null,null,null,null,null,null,null,null,null,null,null,null,null,null,null,null,null,null,null,null,null,null,null,null,null,null,null,null,null,null,null,null,null,null,null,null,null,null,null,"L",null,null,null,null,"N"]
[null,null,"5 QUILLES - NATIONALE 1",null,null,null,null,null,null,null,null,null,null,null,null,null,null,null,null,null,null,null,null,null,null,null,null,null,null,null,null,null,null,null,null,null,null,"L",null,null,null,null,null,null,null,"N"]
[null,null,"CRITERIUM REGIONAL",null,null,null,null,null,null,null,null,null,null,null,null,null,null,null,null,null,null,null,null,null,null,null,null,null,null,null,null,null,null,null,null,null,null,null,null,null,null,null,"L",null,null,null,null,"N"]
[null,null,null,null,"07",14,21,28,"05",12,19,26,"02","09",16,23,30,"07",14,21,28,"04",11,18,25,"01","08",15,22,"01","08",15,22,29,"05",12,19,26,"03",10,null,17,24,31,"07",14,21,28,"05",12,19,26]
[null,null,null,null,"SEPTEMBRE",null,null,null,"OCTOBRE",null,null,null,"NOVEMBRE",null,null,null,null,"DECEMBRE",null,null,null,"JANVIER",null,null,null,"FEVRIER",null,null,null,"MARS",null,null,null,null,"AVRIL",null,null,null,"MAI",null,null,null,null,null,"JUIN",null,null,null,"JUILLET"]
[]
[]
["TOURNOIS","DAMES",null,"LIBRE TN1 : | TN2 : | TN3 : - 3 BANDES TN1 : | TN2 : | TN3 :"]
[null,null,null,null,null,null,null,null,null,null,null,null,null,null,null,null,null,null,null,null,null,null,null,null,null,null,null,null,null,null,null,null,null,null,null,null,null,null,null,null,"Les dates des finales de Ligues qualificatives pour une finale nationale sont des dates butoirs."]
[null,"CADRE 47/2 - 71/2",null,"47/2 TN1 : | TN2 : | TN3 : - 71/2 TN1 : | TN2 : | TN3 :"]
[]
[null,"1-BANDE",null,"TN1 : | TN2 : | TN3 :"]
[null,"3-BANDES",null,"TN1 : | TN2 : | TN3 : | TN4 :"]
[null,null,null,null,null,null,null,null,null,null,null,null,null,null,null,null,null,null,null,null,null,null,null,null,null,null,null,null,null,null,null,null,null,null,null,"M = Championnat du Monde | W.C = World Cup | W.G. = World Grand Prix | G.P. = Grand Prix CEB\nE = Championnat d'Europe | Z.E = Zone Européenne | C.E = Coupe d'Europe | E.L = Euro Ligue| E.L.C = European Ladies Cup\nN = Finale Nationale | T.N = Tournoi National | E.N = Eliminatoire Nationale | Q.N = Qualification Nationale\nT.R = Tournoi Régional | L = Finale de Ligue\nVOT = Verhoeven Open Tournament | LBM = Lausanne Billard Masters | BCC = Billiard Charity Challenge | LG U-plus = Coupe LG\n3CSM = 3 Cushion Survival Masters | MC = Mac Creery 3C Champion of Champions | CC = Continal Cup"]
[null,"5-QUILLES",null,"TN1 : | TN2 : | TN3 : | TN4 : | TN5 :"]
[null,"ARTISTIQUE",null,"TN1 : | TN2 : | TN3 : | GP 04/09 au 07/09 : GERASDORF BEI WIEN (AUT) | GP 28/05 au 31/05 : BLOIS (FR)"]
[null,"WORLD CUP 3-BANDES",null,"06/10 au 12/10 : ANTWERP (BEL) | 03/11 au 09/11 : SEOUL (COREE) | 07/12 au 13/12 : (EGY) |\n06/04 au12/04 : (COL) | 18/05 au 24/05 : HO CHI MINH CITY (VNM) | 08/06 au 14/06 : ANKARA (TUR)"]

{"sheet":"2025 26 - v0","index":2,"n_rows":64,"n_cols":57,"rows_kept":64,"cut":false,"hidden":true,"merged":[[4,51,8,52],[2,4,2,45],[2,51,2,56],[3,51,3,56],[4,3,8,3],[4,4,4,7],[4,8,4,11],[4,12,4,16],[4,17,4,20],[4,21,4,24],[4,25,4,28],[55,17,55,20],[4,53,8,54],[4,55,8,56],[5,0,5,2],[6,0,6,2],[7,0,7,2],[9,0,31,0],[9,1,10,1],[11,1,23,1],[25,1,28,1],[29,1,31,1],[4,29,4,33],[4,34,4,37],[4,38,4,42],[4,43,4,46],[4,47,4,50],[32,0,53,1],[54,3,55,3],[55,4,55,7],[55,8,55,11],[55,12,55,16],[55,47,55,50],[57,0,63,0],[57,1,57,2],[57,4,57,32],[57,35,58,56],[58,1,58,2],[58,4,58,32],[59,1,59,2],[59,4,59,32],[60,1,60,2],[55,21,55,24],[55,25,55,28],[55,29,55,33],[55,34,55,37],[55,38,55,42],[55,43,55,46],[60,4,60,32],[60,35,63,56],[61,1,61,2],[61,4,61,32],[62,1,62,2],[62,4,62,32],[63,1,63,2],[63,4,63,32]]}
[null,null,null,null,null,7,{"$f":"F1+7","v":14},21,28,35,42,49,56,63,70,77,84,91,98,105,112,119,126,133,140,147,154,161,168,175,182,189,196,203,210,217,224,231,238,245,252,259,266,273,280,287,294,301,308,315,322]
[null,null,2025,null,{"$f":"DATE(C2-1,9,$E9)","v":"2024-09-07"},{"$f":"$E2+F1","v":"2024-09-14"},"2024-09-21","2024-09-28","2024-10-05","2024-10-12","2024-10-19","2024-10-26","2024-11-02","2024-11-09","2024-11-16","2024-11-23","2024-11-30","2024-12-07","2024-12-14","2024-12-21","2024-12-28","2025-01-04","2025-01-11","2025-01-18","2025-01-25","2025-02-01","2025-02-08","2025-02-15","2025-02-22","2025-03-01","2025-03-08","2025-03-15","2025-03-22","2025-03-29","2025-04-05","2025-04-12","2025-04-19","2025-04-26","2025-05-03","2025-05-10","2025-05-17","2025-05-24","2025-05-31","2025-06-07","2025-06-14","2025-06-21","2025-06-28","2025-07-05","2025-07-12","2025-07-19","2025-07-26"]
[null,null,null,null,"CALENDRIER FEDERAL DE LA DISCIPLINE CARAMBOLE - 2025/2026",null,null,null,null,null,null,null,null,null,null,null,null,null,null,null,null,null,null,null,null,null,null,null,null,null,null,null,null,null,null,null,null,null,null,null,null,null,null,null,null,null,null,null,null,null,null,"Édition 01 -30/07/2025"]
[]
[null,null,null,null,"SEPTEMBRE",null,null,null,"OCTOBRE",null,null,null,"NOVEMBRE",null,null,null,null,"DECEMBRE",null,null,null,"JANVIER",null,null,null,"FEVRIER",null,null,null,"MARS",null,null,null,null,"AVRIL",null,null,null,"MAI",null,null,null,null,"JUIN",null,null,null,"JUILLET",null,null,null,"Championnats\nde France \n",null,"Championnats\nd'Europe",null,"Championnats\ndu Monde"]
["  Zone A : Nouv.Aqu / Bou.Fra-Com / Auv.Rhô-Alp"]
["  Zone B : HdF / Nor / Bret  / PdL  / C.VdL / G.Est / PACA"]
["  Zone C : Île de France / Occitanie"]
[null,null,null,null,7,{"$f":"DAY(F$2)","v":14},21,28,5,12,19,26,2,9,16,23,30,7,14,21,28,4,11,18,25,1,8,15,22,1,8,15,22,29,5,12,19,26,3,10,17,24,31,7,14,21,28,5,12,19,26]
["CATEGORIES   INTERNATIONALES","Dames","LIBRE",null,null,null,null,null,null,null,null,null,null,null,"TN1",null,null,null,null,null,null,null,"TN2",null,null,null,null,null,null,null,null,null,null,null,null,"TN3",null,null,null,null,null,"N",null,null,null,null,null,null,null,null,null,"94","ST MAUR DES FOSSES"]
[null,null,"3 BANDES",null,null,null,"M",null,"TN1",null,null,null,null,null,null,null,null,"TN2",null,null,null,null,null,null,null,null,"TN3",null,null,null,"E","E",null,null,null,null,null,null,null,"GP",null,"N",null,null,null,null,null,null,null,null,null,"94","ST MAUR DES FOSSES",null,null,"ESP","MURCIA"]
[null,"MASTERS","71/2",null,null,null,null,null,null,null,null,null,null,null,null,null,null,null,null,null,null,null,"TN1",null,null,"TN2",null,null,null,null,"E","E",null,null,null,null,null,null,null,null,null,"TN3",null,null,"N",null,null,null,null,null,null,"33","ANDERNOS","TUR","TURKIYE"]
[null,null,"47/2",null,null,null,null,"TN1",null,null,null,"TN2",null,null,null,null,null,null,null,null,null,null,null,null,null,null,null,null,"TN3",null,"E","E",null,null,"N",null,null,null,null,null,null,null,null,null,null,null,null,null,null,null,null,"28","CHARTRES","TUR","TURKIYE"]
[null,null,"1 BANDE",null,null,null,null,null,null,null,null,null,null,null,null,"TN1",null,null,null,"TN2",null,null,null,null,null,null,null,null,null,null,"E","E",null,null,null,"TN3",null,null,null,"N",null,null,null,null,null,null,null,null,null,null,null,"47","AGEN","TUR","TURKIYE"]
[null,null,"TOP LIGUE 1 JDS",null,null,null,null,null,null,"J1",null,null,null,"J2",null,null,null,null,"J3",null,null,null,null,"J4",null,null,null,null,null,"N",null,null,null,null,null,null,"E",null,null,null,null,null,null,null,null,null,null,null,null,null,null,null,null,"FRA","DOUAI"]
[null,null,"3 BANDES (international)",null,null,null,null,null,"WC","WC","M",null,"WC","WC",null,null,null,"WC","WC","M",null,null,null,null,null,null,null,null,null,null,"E","E",null,null,"WC","WC",null,null,null,null,"WC","WC",null,"WC","WC",null,null,null,null,null,null,null,null,"TUR","TURKIYE","BEL/FRA","ANTWERP / BLOIS"]
[null,null,"3 BANDES (national)",null,null,null,null,null,null,null,null,null,null,null,"TN1",null,null,null,null,null,null,null,"TN2",null,null,null,null,"TN3",null,null,null,null,null,"TN4",null,null,null,null,"N"]
[null,null,"3B TOP LIGUE 1",null,null,null,null,"J1",null,null,null,"J2",null,null,null,null,"J3",null,null,null,null,null,null,null,"J4",null,null,null,"J5",null,null,null,"J6",null,null,null,null,"N"]
[null,null,"3B Équipe Nationale",null,null,null,null,null,null,null,null,null,null,null,null,null,null,null,null,null,null,null,null,null,null,null,null,null,null,"M","E","E",null,null,null,null,null,null,null,null,null,null,null,null,null,null,null,null,null,null,null,null,null,"TUR","TURKIYE","DEU","VIERSEN"]
[null,null,"5 QUILLES",null,null,null,null,null,"TN1",null,null,null,null,"TN2",null,null,null,null,null,null,null,null,null,"TN3",null,null,"TN4",null,null,null,"E","E",null,"TN5",null,null,null,null,null,"N",null,null,null,null,null,null,null,null,null,null,null,null,null,"TUR","TURKIYE"]
[null,null,"5 QUILLES DAMES",null,null,null,null,null,null,null,null,null,null,null,null,"M",null,null,null,null,null,null,null,null,null,null,null,null,null,null,"E","E",null,null,null,null,null,null,null,null,null,null,null,null,null,null,null,null,null,null,null,null,null,"TUR","TURKIYE","ESP","MADRID"]
[null,null,"5Q DIVISION 1",null,null,null,null,null,null,null,null,null,null,null,null,null,null,null,"J1",null,null,null,null,null,"J2",null,null,null,null,null,null,null,null,null,null,"N",null,null,null,null,null,null,null,null,null,"E",null,null,null,null,null,"54","LAXOU","CZE","JABLONEC NAD NISOU"]
[null,null,"5Q Équipe Nationale",null,null,null,null,null,null,null,null,null,null,null,null,"M",null,null,null,null,null,null,null,null,null,null,null,null,null,null,"E","E",null,null,null,null,null,null,null,null,null,null,null,null,null,null,null,null,null,null,null,null,null,"TUR","TURKIYE"]
[null,null,"ARTISTIQUE",null,"GP",null,null,null,null,null,null,null,null,"TN1",null,null,null,null,"TN2",null,null,null,null,null,null,null,"TN3",null,null,null,"E","E",null,null,null,null,"N",null,null,null,null,null,"GP",null,null,null,null,null,null,null,null,null,null,"TUR","TURKIYE"]
[null,"U17","3 BANDES",null,null,null,null,null,null,null,null,null,null,null,null,null,null,null,null,null,null,null,null,null,null,null,null,null,null,null,null,"L",null,null,"N",null,null,null,null,null,null,null,null,null,null,null,null,null,null,null,null,"58","FOURCHAMBAULT"]
[null,"U 21","LIBRE",null,null,null,null,null,null,null,null,null,null,null,null,null,null,null,null,null,null,null,null,null,null,null,null,null,null,null,null,null,null,null,null,null,null,null,null,null,null,null,null,"L",null,null,"N",null,null,null,null,"47","AGEN"]
[null,null,"3 BANDES",null,null,null,null,"M",null,null,null,"GP",null,null,null,null,null,null,null,null,null,null,null,null,null,null,null,null,null,null,null,null,null,"L",null,null,"N",null,"GP",null,null,null,null,null,null,null,null,null,null,null,null,"02","ST QUENTIN",null,null,"ESP","MURCIA"]
[null,null,"5 QUILLES",null,null,null,null,null,null,null,null,null,null,null,null,null,null,null,"L",null,null,null,"N",null,null,null,null,null,null,null,null,null,null,null,null,null,null,null,null,null,null,null,null,null,null,null,null,null,null,null,null,"26","ROMANS/ISERE"]
[null,null,"BIATHLON (3B & 5Q)"]
[null,"U 25","LIBRE",null,null,null,null,null,null,null,null,null,null,null,null,null,null,null,null,null,null,null,null,null,null,"L",null,null,"N"]
[null,null,"47/2",null,null,null,null,null,null,null,null,null,null,null,null,null,null,null,null,null,null,null,null,null,null,"L",null,null,"N"]
[null,null,"3 BANDES",null,null,null,null,null,null,null,null,null,null,null,null,null,null,null,"L",null,null,null,null,"N",null,null,null,null,null,null,"E","E",null,null,null,null,null,null,null,null,null,null,null,null,null,null,null,null,null,null,null,"33","GRADIGNAN","TUR",null,"ESP","MURCIA"]
["CATEGORIES   NATIONALES",null,"LIBRE - NATIONALE 1",null,null,null,null,null,null,null,null,null,null,null,null,null,null,null,null,null,null,null,null,null,null,null,null,null,null,"L",null,null,null,"N",null,null,null,null,null,null,null,null,null,null,null,null,null,null,null,null,null,76,"OISSEL"]
[null,null,"LIBRE - NATIONALE 2",null,null,null,null,null,null,null,null,null,null,null,null,null,null,null,null,null,null,null,null,null,null,null,null,null,null,"L",null,null,null,"N"]
[null,null,"LIBRE - NATIONALE 3",null,null,null,null,null,null,null,null,null,null,null,null,null,null,null,null,null,null,null,null,null,null,null,null,null,null,"L",null,null,null,"N",null,null,null,null,null,null," ",null,null,null,null,null,null,null,null,null,null,54,"PONT A MOUSSON"]
[null,null,"47/2 - NATIONALE 1",null,null,null,null,null,null,null,null,null,null,null,null,null,null,null,null,null,null,null,null,null,null,null,null,"L",null,null,"N",null,null,null,null,null,null,null,null,null,null,null,null,null,null,null,null,null,null,null,null,37,"COLBERT ST PIERRE"]
[null,null,"47/2 - NATIONALE 2",null,null,null,null,null,null,null,null,null,null,null,null,null,null,null,null,null,null,null,null,null,null,null,null,"L",null,null,"N",null,null,null,null,null,null,null,null,null,null,null,null,null,null,null,null,null,null,null,null,42,"MONTBRISON"]
[null,null,"47/2 - NATIONALE 3",null,null,null,null,null,null,null,null,null,null,null,null,null,null,null,null,null,null,null,null,null,null,null,null,"L",null,null,"N",null,null,null,null,null,null,null,null,null,null,null,null,null,null,null,null,null,null,null,null,59,"GRAVELINES"]
[null,null,"1 BANDE - NATIONALE 1",null,null,null,null,null,null,null,null,null,null,null,null,null,null,null,null,null,null,null,null,null,null,null,null,null,null,null,null,null,null,null,null,null,"L",null,null,null,"N",null,null,null,null,null,null,null,null,null,null,69,"ECULLY"]
[null,null,"1 BANDE - NATIONALE 2",null,null,null,null,null,null,null,null,null,null,null,null,null,null,null,null,null,null,null,null,null,null,null,null,null,null,null,null,null,null,null,null,null,"L",null,null,null,"N"]
[null,null,"1 BANDE - NATIONALE 3",null,null,null,null,null,null,null,null,null,null,null,null,null,null,null,null,null,null,null,null,null,null,null,null,null,null,null,null,null,null,null,null,null,"L",null,null,null,"N",null,null,null,null,null,null,null,null,null,null,62,"CALAIS"]
[null,null,"JDS FEDERALE 2",null,null,null,null,null,null,null,null,null,null,null,null,null,null,null,null,null,null,null,null,null,null,null,null,null,null,null,null,null,null,null,null,null,null,"L",null,null,null,"E.N",null,null,"N"]
[null,null,"JDS FEDERALE 3",null,null,null,null,null,null,null,null,null,null,null,null,null,null,null,null,null,null,null,null,null,null,null,null,null,null,null,null,null,null,null,null,null,null,"L",null,null,null,"E.N",null,null,"N"]
[null,null,"JDS FEDERALE 4",null,null,null,null,null,null,null,null,null,null,null,null,null,null,null,null,null,null,null,null,null,null,null,null,null,null,null,null,null,null,null,null,null,null,"L",null,null,null,"E.N",null,null,"N"]
[null,null,"3 BANDES - NATIONALE 1",null,null,null,null,null,null,null,null,null,null,null,null,null,null,null,null,null,null,null,null,null,null,null,null,null,null,null,null,null,"L",null,null,"N"]
[null,null,"3 BANDES - NATIONALE 2",null,null,null,null,null,null,null,null,null,null,null,null,null,null,null,null,null,null,null,null,null,null,null,null,null,null,null,null,null,"L",null,null,"N",null,null,null,null,null,null,null,null,null,null,null,null,null,null,null,68,"COLMAR"]
[null,null,"3 BANDES - NATIONALE 3",null,null,null,null,null,null,null,null,null,null,null,null,null,null,null,null,null,null,null,null,null,null,null,null,null,null,null,null,null,"L",null,null,"N",null,null,null,null,null,null,null,null,null,null,null,null,null,null,null,30,"NIMES"]
[null,null,"3B TOP LIGUE 2",null,null,null,null,null,"J1",null,null,null,null,null,null,null,null,"J2",null,null,null,null,null,null,null,"J3",null,null,null,null,null,null,null,null,"J4",null,null,null,null,null,null,null,null,null,null,"N"]
[null,null,"3B FEDERALE 3",null,null,null,null,null,null,"J1",null,null,null,null,null,null,null,null,"J2",null,null,null,null,null,null,null,"J3",null,null,null,null,null,"J4",null,null,null,null,null,null,null,null,null,null,null,null,"N"]
[null,null,"3B FEDERALE 4",null,null,null,null,null,null,null,null,null,null,null,null,null,null,null,null,null,null,null,null,null,null,null,null,null,null,null,null,null,null,null,null,null,null,null,"L",null,null,null,"E.N",null,null,"N"]
[null,null,"3B FEDERALE 5",null,null,null,null,null,null,null,null,null,null,null,null,null,null,null,null,null,null,null,null,null,null,null,null,null,null,null,null,null,null,null,null,null,null,null,"L",null,null,null,"E.N",null,null,"N"]
[null,null,"5 QUILLES - DIVISION 2",null,null,null,null,null,null,null,null,null,null,null,null,null,null,null,null,null,null,null,null,null,null,null,null,null,null,null,null,null,null,null,null,null,null,null,null,null,null,"L",null,null,null,null,"N"]
[null,null,"5 QUILLES - NATIONALE 1",null,null,null,null,null,null,null,null,null,null,null,null,null,null,null,null,null,null,null,null,null,null,null,null,null,null,null,null,null,null,null,null,null,null,"L",null,null,null,null,null,null,"N"]
[null,null,"CRITERIUM REGIONAL",null,null,null,null,null,null,null,null,null,null,null,null,null,null,null,null,null,null,null,null,null,null,null,null,null,null,null,null,null,null,null,null,null,null,null,null,null,null,"L",null,null,null,null,"N",null,null,null,null,"47","AGEN"]
[null,null,null,{"$f":"IF(D5=\"\",\"\",D5)","v":""},{"$f":"E9","v":7},14,21,28,5,12,19,26,2,9,16,23,30,7,14,21,28,4,11,18,25,1,8,15,22,1,8,15,22,29,5,12,19,26,3,10,17,24,31,7,14,21,28,5,12,19,26]
[null,null,null,null,"SEPTEMBRE",null,null,null,"OCTOBRE",null,null,null,"NOVEMBRE",null,null,null,null,"DECEMBRE",null,null,null,"JANVIER",null,null,null,"FEVRIER",null,null,null,"MARS",null,null,null,null,"AVRIL",null,null,null,"MAI",null,null,null,null,"JUIN",null,null,null,"JUILLET"]
[]
["TOURNOIS","DAMES",null,null,"LIBRE TN1 : PONT A MOUSSON   | TN2 : CHATEAUDUN  | TN3 : CORMELLES  - 3 BANDES TN1 : ANNECY  | TN2 : ROMANS/ISERE | TN3 : MARINES",null,null,null,null,null,null,null,null,null,null,null,null,null,null,null,null,null,null,null,null,null,null,null,null,null,null,null,null,null,null,"Les dates des finales de Ligues qualificatives pour une finale nationale sont des dates butoirs."]
[null,"CADRE 47/2 - 71/2",null,null,"47/2 TN1 :   | TN2 : COLBERT ST PIERRE  | TN3 : LA GARDE   - 71/2 TN1 : EPINAL |  TN2 : NANTES  | TN3 : DREUX "]
[null,"1-BANDE",null,null,"TN1 : DOUAI  | TN2 :   | TN3 :  ANDERNOS"]
[null,"3-BANDES",null,null,"TN1 :  ROMANS/ISERE | TN2 :  | TN3 :   | TN4 :  GRAVELINES  ",null,null,null,null,null,null,null,null,null,null,null,null,null,null,null,null,null,null,null,null,null,null,null,null,null,null,null,null,null,null,"M = Championnat du Monde |  W.C = World Cup | W.G. =  World Grand Prix | G.P. = Grand Prix CEB\nE = Championnat d'Europe |  Z.E = Zone Européenne  |  C.E = Coupe d'Europe | E.L = Euro Ligue| E.L.C = European Ladies Cup\nN = Finale Nationale | T.N = Tournoi National  |  E.N = Eliminatoire Nationale | Q.N = Qualification Nationale\nT.R = Tournoi Régional  |  L = Finale de Ligue\nVOT = Verhoeven Open Tournament  |  LBM = Lausanne Billard Masters | BCC = Billiard Charity Challenge | LG U-plus = Coupe LG\n3CSM = 3 Cushion Survival Masters | MC = Mac Creery 3C Champion of Champions | CC = Continal Cup"]
[null,"5-QUILLES ",null,null,"TN1 : ANNOEULLIN | TN2 : ST MAUR | TN3 : REIMS  | TN4 :  ST QUENTIN  | TN5 :  CALAIS"]
[null,"ARTISTIQUE  ",null,null,"TN1 : | TN2 :  | TN3 :  | GP 04/09 au 07/09 : GERASDORF BEI WIEN (AUT) | GP 28/05 au 31/05 : BLOIS (FR)"]
[null,"WORLD CUP 3-BANDES",null,null,"06/10 au 12/10 : ANTWERP (BEL) |   03/11 au 09/11 :  SEOUL (COREE) | 07/12 au 13/12 :  (EGY) |\n06/04 au12/04 : (COL)  | 18/05 au 24/05 : HO CHI MINH CITY (VNM) | 08/06 au 14/06 : ANKARA (TUR)"]

{"sheet":"FFB 2026-2027","index":3,"n_rows":68,"n_cols":57,"rows_kept":68,"cut":false,"hidden":false,"merged":[[4,51,8,52],[2,4,2,45],[2,51,2,56],[3,51,3,56],[4,3,7,3],[4,4,4,7],[4,8,4,11],[4,12,4,16],[4,17,4,20],[4,21,4,25],[4,26,4,29],[58,17,58,20],[4,53,8,54],[4,55,8,56],[5,0,5,2],[6,0,6,2],[7,0,7,2],[9,0,33,0],[9,1,10,1],[11,1,24,1],[26,1,29,1],[30,1,33,1],[4,30,4,33],[4,34,4,37],[4,38,4,42],[4,43,4,46],[4,47,4,50],[34,0,56,1],[57,3,58,3],[58,4,58,7],[58,8,58,11],[58,12,58,16],[58,47,58,50],[60,0,66,0],[60,1,60,2],[60,4,60,32],[60,35,61,56],[61,1,61,2],[61,4,61,32],[62,1,62,2],[62,4,62,32],[63,1,63,2],[58,21,58,25],[58,26,58,29],[58,30,58,33],[58,34,58,37],[58,38,58,42],[58,43,58,46],[63,4,63,32],[63,35,66,56],[64,1,64,2],[64,4,64,32],[65,1,65,2],[65,4,65,32],[66,1,66,2],[66,4,66,32]]}
[null,null,null,null,2026,7,{"$f":"F1+7","v":14},21,28,35,42,49,56,63,70,77,84,91,98,105,112,119,126,133,140,147,154,161,168,175,182,189,196,203,210,217,224,231,238,245,252,259,266,273,280,287,294,301,308,315,322]
[null,null,2026,null,{"$f":"DATE(C2-1,9,$E9)","v":"2025-09-06"},{"$f":"$E2+F1","v":"2025-09-13"},"2025-09-20","2025-09-27","2025-10-04","2025-10-11","2025-10-18","2025-10-25","2025-11-01","2025-11-08","2025-11-15","2025-11-22","2025-11-29","2025-12-06","2025-12-13","2025-12-20","2025-12-27","2026-01-03","2026-01-10","2026-01-17","2026-01-24","2026-01-31","2026-02-07","2026-02-14","2026-02-21","2026-02-28","2026-03-07","2026-03-14","2026-03-21","2026-03-28","2026-04-04","2026-04-11","2026-04-18","2026-04-25","2026-05-02","2026-05-09","2026-05-16","2026-05-23","2026-05-30","2026-06-06","2026-06-13","2026-06-20","2026-06-27","2026-07-04","2026-07-11","2026-07-18","2026-07-25"]
[null,null,null,null,"CALENDRIER FEDERAL DE LA DISCIPLINE CARAMBOLE - 2026/2027",null,null,null,null,null,null,null,null,null,null,null,null,null,null,null,null,null,null,null,null,null,null,null,null,null,null,null,null,null,null,null,null,null,null,null,null,null,null,null,null,null,null,null,null,null,null,"Édition 01 -08/08/2026"]
[]
[null,null,null,"AOUT","SEPTEMBRE",null,null,null,"OCTOBRE",null,null,null,"NOVEMBRE",null,null,null,null,"DECEMBRE",null,null,null,"JANVIER",null,null,null,null,"FEVRIER",null,null,null,"MARS",null,null,null,"AVRIL",null,null,null,"MAI",null,null,null,null,"JUIN",null,null,null,"JUILLET",null,null,null,"Championnats\nde France \n",null,"Championnats\nd'Europe",null,"Championnats\ndu Monde"]
["  Zone A : Nouv.Aqu / Bou.Fra-Com / Auv.Rhô-Alp"]
["  Zone B : HdF / Nor / Bret  / PdL  / C.VdL / G.Est / PACA"]
["  Zone C : Île de France / Occitanie"]
[null,null,null,30,6,{"$f":"DAY(F$2)","v":13},{"$f":"DAY(G$2)","v":20},27,4,11,18,25,1,8,15,22,29,6,13,20,27,3,10,17,24,31,7,14,21,28,7,14,21,28,4,11,18,25,2,9,16,23,30,6,13,20,27,4,11,18,25]
["CATEGORIES   INTERNATIONALES","Dames","LIBRE",null,null,null,null,null,null,null,null,null,"TN1",null,null,"OF",null,null,null,null,null,null,"TN2",null,null,null,null,null,null,null,"OF",null,null,null,"TN3",null,null,null,null,null,"N",null,null,null,null,null,null,null,null,null,null,"54"," Pont a Mousson"]
[null,null,"3 BANDES",null,null,"M",null,null,null,null,"OF",null,null,null,null,null,null,null,"TN1",null,null,null,null,null,null,"OF",null,null,"TN2",null,null,null,"E",null,null,null,null,null,null,"GP","N",null,null,null,null,null,null,null,null,null,null,"54"," Pont a Mousson","TUR","ANKARA","FR","GRADIGNAN"]
[null,"MASTERS","71/2",null,null,null,null,null,null,null,null,null,null,null,null,null,null,null,null,null,null,null,"TN1",null,null,null,"TN2",null,null,null,null,null,null,null,null,null,null,null,null,null,null,"TN3",null,null,"N",null,"E",null,null,null,null,"47","Agen","NDL","ROSMALEN"]
[null,null,"47/2",null,null,null,"TN1",null,null,null,"TN2",null,null,null,null,null,null,null,null,null,null,null,null,null,null,null,null,null,"TN3",null,null,null,null,"N",null,null,null,null,null,null,null,null,null,null,null,null,"E",null,null,null,null,null,null,"NDL","ROSMALEN"]
[null,null,"1 BANDE",null,null,null,null,null,null,null,null,null,null,"TN1",null,null,null,"TN2",null,null,null,null,null,null,null,null,null,null,null,null,null,"GP",null,null,null,"TN3",null,null,null,null,"N",null,null,null,null,null,"E",null,null,null,null,null,null,"NDL","ROSMALEN"]
[null,null,"TOP LIGUE",null,null,null,null,null,null,"J1",null,null,"J2",null,null,null,null,null,"J3",null,null,null,null,null,null,"J4",null,null,null,null,"N",null,null,null,null,null,null,null,"E",null,null,null,null,null,null,null,null,null,null,null,null,null,null,"FR","DOUARNENEZ"]
[null,null,"3 BANDES (international)","WC","WC",null,null,"M",null,null,"WCBS",null,"WC","WC",null,null,null,"WC","WC",null,null,null,null,null,null,null,null,null,null,null,null,null,null,null,"WC","WC",null,"E",null,null,"WC","WC",null,"WC","WC",null,null,"WC","WC",null,null,null,null,"GRC","ATHENES","FR","BLOIS"]
[null,null,"3 BANDES (national)",null,null,null,null,null,null,null,null,"TN1",null,null," ",null,"TN2",null,null,null,null,null,null,null,"TN3",null,null,null,null,"TN4",null,null,null,null,null,null,"TN5",null,null,null,null,null,"N"]
[null,null,"3B TOP LIGUE",null,null,null,null,null,"J1",null,null,null,null,null,"J2",null,null,"J3",null,null,null,null,"J4",null,null,null,"J5",null,null,null,"J6",null,null,null,null,null,null,"  ",null,"N",null,null,null,null,null,null,null,null,null,"E",null,null,null,"PRT","PORTO"]
[null,null,"3B Équipe Nationale",null,null,null,null,null,null,null,null,null,null,null,null,null,null,null,null,null,null,null,null,null,null,null,null,null,"M",null,null,null,null,null,null,null,null,"E",null,null,null,null,null,null,null,null,null,null,null,null,null,null,null,"GRC","ATHENES","DEU","VIERSEN"]
[null,null,"5 QUILLES",null,null,null,null,null,"TN1",null,null,null,"TN2",null,null,null,null,null,null,null,null,null,null,"TN3",null,null,null,null,null,"TN4",null,null,null,"TN5",null,null,null,"N"]
[null,null,"5 QUILLES DAMES",null,null,null,null,null,null,null,null,null,null,null,null,null,null,null,null,null,null,null,null,null,null,null,null,"E",null,null,null,null,null,null,"N",null,null,null,null,null," ",null,null,null,null,null,null,"L",null,null,null,null,null,"DNK","HERNING"]
[null,null,"5Q DIVISION 1",null,null,null,null,null,null,null,null,null,null,null,null,null,null,null,"J1",null,null,null,null,null,null,null,"J2",null,null,null,null,null,"N",null,null,null,null,null,null,null,null,null,null,"E",null,null,null,null,null,null,null,null,null,"FR","LAXOU"]
[null,null,"5Q Équipe Nationale",null,null,null,null,null,null,null,null,null,null,null,null,null,null,null,null,null,null,null,null,null,null,null,null,"E",null,null,null,null,null,null,null,null,null,null,null,null,null,null,null,null,null,null,null,null,null,null,null,null,null,"DNK","HERNING"]
[null,null,"BIATHLON (3B & 5Q)",null,null,null,null,null,null,null,null,null,null,null,null,null,null,null,null,null,null,null,null,null,null,null,null,null,"L",null,null,"N"]
[null,null,"ARTISTIQUE",null,null,null,null,null,null,null,null,null,"TN1",null,null,null,null,null,null,null,null,null,null,null,null,null,null,null,"TN2",null,null,null,null,null,null,null,null,null,"N",null,null,null,null,null,null,"GP"]
[null,"U17","3 BANDES",null,null,null,null,null,null,null,null,null,null,null,null,null,null,null,null,null,null,null,null,null,null,null,null,null,null,null,null,null,null,"E",null,"N",null,null,null,null,null,null,null,null,null,null,null,null,null,null,null,"47","Agen","GRC","SALAMINA"]
[null,"U 21","LIBRE",null,null,null,null,null,null,null,null,null,null,null,null,null,null,null,null,null,null,null,null,null,null,null,null,null,null,null,null,null,null,null,null,null,null,null,null,"OJ",null,null,null,null,"N"]
[null,null,"3 BANDES",null,null,null,"M",null,null,null,null,null,null,null,null,null,"GP",null,null,null,null,null,null,null,null,null,null,null,"N",null,null,null,null,"E",null,null,null,null,null,null,null,null,null,null,null,null,null,null,null,null,null,"58","Fourchambault","GRC","SALAMINA","FR","GRADIGNAN"]
[null,null,"5 QUILLES",null,null,null,null,null,null,null,null,null,null,null,null,null,null,null,null,null,null,null,null,null,null,null,null,"GP",null,null,null,null,null,"E",null,null,"N",null,null,null,null,null,null,null,null,null,null,null,null,null,null,null,null,"GRC","SALAMINA"]
[null,null,"BIATHLON (3B & 5Q)",null,null,null,null,null,null,null,null,null,null,null,null,null,null,null,null,null,null,null,null,null,null,null,null,null,null,null,null,null,null,"E",null,null,null,null,null,null,null,null,null,null,null,null,null,null,null,null,null,null,null,"GRC","SALAMINA"]
[null,"U 25","LIBRE",null,null,null,null,null,null,null,null,null,null,null,null,null,null,null,null,null,null,null,null,null,null,null,"N"]
[null,null,"47/2",null,null,null,null,null,null,null,null,null,null,null,null,null,null,null,null,null,null,null,null,null,null,null,"N"]
[null,null,"3 BANDES",null,null,null,null,null,null,null,"E",null,null,null,null,null,null,null,null,null,null,null,null,null,null,null,null,null,null,null,null,null,null,null,null,null,null,null,"N",null,null,null,null,null,null,null,null,null,null,null,null,"02","St Quentin","ESP","Los Alcazares"]
[null,null,"5 QUILLES",null,null,null,null,null,null,null,null,null,null,null,null,null,null,null,null,null,null,null,null,null,null,null,null,"GP",null,null,null,null,null,null,null,null,null,null,null,null,null,null,null,null,null,null,null,null,null,null,null,null,null,"DNK","HERNING"]
["CATEGORIES   NATIONALES",null,"LIBRE - NATIONALE 1",null,null,null,null,null,null,null,null,"J1",null,null,null,null,null,null,null,"J2",null,null,null,null,null,null,null,"J3",null,null,null,null,"N"]
[null,null,"LIBRE - NATIONALE 2",null,null,null,null,null,null,null,null,null,null,null,null,null,null,null,null,null,null,null,null,null,null,null,null,null,"L",null,null,null,"N",null,null,null,null,null,null,null,null,null,null,null,null,null,null,null,null,null,null,30,"Nimes"]
[null,null,"LIBRE - NATIONALE 3",null,null,null,null,null,null,null,null,null,null,null,null,null,null,null,null,null,null,null,null,null,null,null,null,null,"L",null,null,null,"N",null,null,null,null,null,null,null,null,null,null,null,null,null,null,null,null,null,null,28,"Chartres"]
[null,null,"47/2 - NATIONALE 1",null,null,null,null,null,null,null,null,null,null,null,"J1",null,null,null,null,null,null,null,null,null,"J2",null,null,null,null,"J3",null,null,null,null,"N"]
[null,null,"47/2 - NATIONALE 2",null,null,null,null,null,null,null,null,null,null,null,null,null,null,null,null,null,null,null,null,null,null,null,null,null,null,null,"L",null,null,null,"N",null,null,null,null,null,null,null,null,null,null,null,null,null,null,null,null,37,"MontLouis"]
[null,null,"47/2 - NATIONALE 3",null,null,null,null,null,null,null,null,null,null,null,null,null,null,null,null,null,null,null,null,null,null,null,null,null,null,null,"L",null,null,null,"N",null,null,null,null,null,null,null,null,null,null,null,null,null,null,null,null,21,"Dijon"]
[null,null,"1 BANDE - NATIONALE 1",null,null,null,null,null,null,null,null,null,null,null,null,null,"J1",null,null,null,null,null,null,null,null,"J2",null,null,null,null,null,null,null,"J3",null,null,null,null,"N"]
[null,null,"1 BANDE - NATIONALE 2",null,null,null,null,null,null,null,null,null,null,null,null,null,null,null,null,null,null,null,null,null,null,null,null,null,null,null,null,null,null,"L",null,null,null,null,"N",null,null,null,null,null,null,null,null,null,null,null,null,26,"RmanSur Isère"]
[null,null,"1 BANDE - NATIONALE 3",null,null,null,null,null,null,null,null,null,null,null,null,null,null,null,null,null,null,null,null,null,null,null,null,null,null,null,null,null,null,"L",null,null,null,null,"N",null,null,null,null,null,null,null,null,null,null,null,null,59,"Villeneuve D'Asq"]
[null,null,"JDS FEDERALE 1",null,null,null,null,null,null,null,null,null,null,null,null,null,null,null,null,null,null,null,null,null,null,null,null,null,null,null,null,null,null,null,null,"L",null,null,null,"E.N",null,null,null,"N"]
[null,null,"JDS FEDERALE 2",null,null,null,null,null,null,null,null,null,null,null,null,null,null,null,null,null,null,null,null,null,null,null,null,null,null,null,null,null,null,null,null,"L",null,null,null,"E.N",null,null,null,"N"]
[null,null,"JDS FEDERALE 3",null,null,null,null,null,null,null,null,null,null,null,null,null,null,null,null,null,null,null,null,null,null,null,null,null,null,null,null,null,null,null,null,"L",null,null,null,"E.N",null,null,null,"N"]
[null,null,"JDS FEDERALE 4",null,null,null,null,null,null,null,null,null,null,null,null,null,null,null,null,null,null,null,null,null,null,null,null,null,null,null,null,null,null,null,null,"L",null,null,null,"E.N",null,null,null,"N"]
[null,null,"3 BANDES - NATIONALE 1",null,null,null,null,null,null,null,null,null,null,null,null,null,null,null,null,null,null,null,null,null,null,null,null,null,null,null,null,"L",null,null,null,null,"ZONE",null,null,null,"N"]
[null,null,"3 BANDES - NATIONALE 2",null,null,null,null,null,null,null,null,null,null,null,null,null,null,null,null,null,null,null,null,null,null,null,null,null,null,null,null,null,null,null,null,null,"L",null,null,null,"N"]
[null,null,"3 BANDES - NATIONALE 3",null,null,null,null,null,null,null,null,null,null,null,null,null,null,null,null,null,null,null,null,null,null,null,null,null,null,null,null,null,null,null,null,null,"L",null,null,null,"N"]
[null,null,"3B FEDERALE 1",null,null,null,null,null,null,"J1",null,null,null,null,null,"J2",null,null,null,null,null,null,null,"J3",null,null,null,"J4",null,null,null,null,"J5",null,null,null,null,null,null,null,null,null,null,null,null,"N"]
[null,null,"3B FEDERALE 2",null,null,null,null,null,null,null,null,null,null,"J1",null,null,null,"J2",null,null,null,null,"J3",null,null,null,null,null,null,null,"J4",null,null,null,"J5",null,null,null,null,null,null,"E.N",null,null,null,"N"]
[null,null,"3B FEDERALE 3",null,null,null,null,null,null,null,null,null,null,null,null,null,null,null,null,null,null,null,null,null,null,null,null,null,null,null,null,null,null,null,null,null,null,"L",null,null,null,"E.N",null,null,null,"N"]
[null,null,"3B FEDERALE 4",null,null,null,null,null,null,null,null,null,null,null,null,null,null,null,null,null,null,null,null,null,null,null,null,null,null,null,null,null,null,null,null,null,null,"L",null,null,null,"E.N",null,null,null,"N"]
[null,null,"5 QUILLES - DIVISION 2",null,null,null,null,null,null,null,null,null,null,null,null,null,null,null,null,null,null,null,null,null,null,null,null,null,null,null,null,null,null,null,null,null,null,null,null,null,null,null,"L",null,null,null,"N"]
[null,null,"5 QUILLES - NATIONALE 1",null,null,null,null,null,null,null,null,null,null,null,null,null,null,null,null,null,null,null,null,null,null,null,null,null,null,null,null,null,null,null,null,null,null,null,null,null,"L",null,null,null,"N"]
[null,null,"CRITERIUM REGIONAL",null,null,null,null,null,null,null,null,null,null,null,null,null,null,null,null,null,null,null,null,null,null,null,null,null,null,null,null,null,null,null,null,null,null,null,null,null,null,null,"L",null,null,null,"N"]
[null,null,null,{"$f":"IF(D5=\"\",\"\",D5)","v":"AOUT"},{"$f":"E9","v":6},13,20,27,4,11,18,25,1,8,15,22,29,6,13,20,27,3,10,17,24,31,7,14,21,28,7,14,21,28,4,11,18,25,2,9,16,23,30,6,13,20,27,4,11,18,25]
[null,null,null,null,"SEPTEMBRE",null,null,null,"OCTOBRE",null,null,null,"NOVEMBRE",null,null,null,null,"DECEMBRE",null,null,null,"JANVIER",null,null,null,null,"FEVRIER",null,null,null,"MARS",null,null,null,"AVRIL",null,null,null,"MAI",null,null,null,null,"JUIN",null,null,null,"JUILLET"]
[]
["TOURNOIS","DAMES",null,null,"LIBRE TN1 :   | TN2 :  | TN3 :   - 3 BANDES TN1 :  | TN2 :  | TN3 : ",null,null,null,null,null,null,null,null,null,null,null,null,null,null,null,null,null,null,null,null,null,null,null,null,null,null,null,null,null,null,"Les dates des finales de Ligues qualificatives pour une finale nationale sont des dates butoirs."]
[null,"CADRE 47/2 - 71/2",null,null,"47/2 TN1 :   | TN2 :   | TN3 :    - 71/2 TN1 :  |  TN2 :   | TN3 :  "]
[null,"1-BANDE",null,null,"TN1 :   | TN2 :   | TN3 : "]
[null,"3-BANDES",null,null,"TN1 :  | TN2 :  | TN3 :   | TN4 :    | TN5 :",null,null,null,null,null,null,null,null,null,null,null,null,null,null,null,null,null,null,null,null,null,null,null,null,null,null,null,null,null,null,"M = Championnat du Monde |  W.C = World Cup | W.G. =  World Grand Prix | G.P. = Grand Prix CEB | BS. = WCBS\nE = Championnat d'Europe |  Z.E = Zone Européenne  |  C.E = Coupe d'Europe | E.L = Euro Ligue| E.L.C = European Ladies Cup\nN = Finale Nationale | T.N = Tournoi National  |  E.N = Eliminatoire Nationale | Q.N = Qualification Nationale\nT.R = Tournoi Régional  |  L = Finale de Ligue |  I L = Inter ligues Jeunes | OF = Open Formation\nVOT = Verhoeven Open Tournament  |  LBM = Lausanne Billard Masters | BCC = Billiard Charity Challenge | LG U-plus = Coupe LG\n3CSM = 3 Cushion Survival Masters | MC = Mac Creery 3C Champion of Champions | CC = Continal Cup"]
[null,"5-QUILLES ",null,null,"TN1 : | TN2 :  | TN3 :   | TN4 :   | TN5 :"]
[null,"ARTISTIQUE  ",null,null,"TN1 : | TN2 :  | TN3 :  | GP 17/06 au 20/06 : AARTSELAAR (BEL) "]
[null,"WORLD CUP 3-BANDES",null,null,"31/08 au 06/09 : ANTWERP (BEL) |   02/11 au 08/11 :  (COREE) | 06/12 au 12/12 :  (EGY) |\n05/04 au11/04 : (COL)  | 17/05 au 23/05 : HO CHI MINH CITY (VNM) | 07/06 au 13/06 : ANKARA (TUR) | 04/07 au 10/07 : PORTO (PRT)"]
[null,null,null,null,null,null,null,null,null,null,null,null,null,null,null,null,null,null,null,null,null,null,null,null,null,null,null,null,null,null,null,null,null,null,null,null,null,null,null,null,null,null,null,null,null,null,null,null,null,null,null,null," "]

{"sheet":"LMB 2026-2027","index":4,"n_rows":46,"n_cols":48,"rows_kept":46,"cut":false,"hidden":false,"merged":[[12,11,12,12],[16,3,16,4],[9,22,9,23],[10,22,10,23],[17,23,17,24],[18,23,18,24],[6,22,6,23],[21,24,21,25],[25,14,25,15],[26,14,26,15],[25,24,25,25],[26,24,26,25],[26,28,26,29],[22,24,22,25],[16,23,16,24],[32,29,32,30],[33,29,33,30],[29,13,29,14],[28,21,28,22],[28,29,28,30],[29,29,29,30],[32,13,32,14],[20,28,20,29],[24,28,24,29],[25,28,25,29],[24,24,24,25],[28,13,28,14],[45,6,45,10],[45,11,45,14],[19,0,26,0],[41,0,42,0],[6,4,6,5],[6,8,6,9],[6,12,6,13],[10,4,10,5],[9,8,9,9],[8,4,8,5],[22,10,22,11],[17,7,17,8],[18,7,18,8],[16,11,16,12],[17,11,17,12],[18,11,18,12],[16,7,16,8],[12,3,12,4],[13,3,13,4],[14,3,14,4],[9,4,9,5],[24,10,24,11],[25,10,25,11],[20,10,20,11],[41,47,42,47],[45,2,45,5],[44,0,45,1],[38,0,40,0],[27,0,34,0],[45,33,45,36],[45,15,45,17],[45,18,45,19],[45,20,45,24],[45,25,45,28],[2,18,43,19],[45,29,45,32],[45,37,45,41],[3,47,10,47],[11,47,18,47],[38,47,40,47],[45,42,45,45],[19,47,26,47],[17,15,17,16],[5,16,5,17],[6,16,6,17],[4,22,4,23],[5,22,5,23],[5,8,5,9],[34,29,34,30],[35,47,37,47],[27,47,34,47],[0,2,0,5],[0,0,1,1],[3,0,10,0],[0,18,0,19],[0,33,0,36],[0,29,0,32],[0,15,0,17],[0,20,0,24],[0,25,0,28],[4,4,4,5],[0,42,0,45],[0,37,0,41],[16,15,16,16],[4,8,4,9],[4,12,4,13],[8,12,8,13],[8,8,8,9],[5,12,5,13],[9,12,9,13],[12,7,12,8],[12,15,12,16],[0,6,0,10],[0,11,0,14],[35,0,37,0],[11,0,18,0],[18,15,18,16],[13,23,13,24],[14,23,14,24],[8,22,8,23],[21,10,21,11],[20,24,20,25],[13,7,13,8],[14,7,14,8],[14,15,14,16],[10,8,10,9],[10,12,10,13],[8,16,8,17],[9,16,9,17],[10,16,10,17],[5,4,5,5],[2,24,2,25],[33,13,33,14],[32,21,32,22],[12,23,12,24],[4,16,4,17],[0,46,0,47],[1,46,1,47],[44,46,44,47],[45,46,45,47],[32,9,32,10],[33,9,33,10],[34,9,34,10],[34,13,34,14],[33,21,33,22],[34,21,34,22],[32,25,32,26],[33,25,33,26],[34,25,34,26],[28,9,28,10],[29,9,29,10],[30,9,30,10],[30,13,30,14],[29,21,29,22],[30,21,30,22],[21,28,21,29],[22,28,22,29],[26,10,26,11],[24,14,24,15],[30,29,30,30]]}
["Calendrier  LMB\n2026-2027",null,"Septembre",null,null,null,"Octobre",null,null,null,null,"Novembre",null,null,null,"Décembre",null,null,"N&A",null,"Janvier",null,null,null,null,"Février",null,null,null,"Mars",null,null,null,"Avril",null,null,null,"Mai",null,null,null,null,"Juin",null,null,null,"Version\n"]
[null,null,5,12,19,26,3,10,17,24,31,7,14,21,28,5,12,19,26,1,2,9,16,23,30,6,13,20,27,6,13,20,27,3,10,17,24,1,8,15,22,29,5,12,19,26,"X9"]
["D","DAMES",null,null,null,null,null,null,null,null,null,null,null,null,null,null,null,null,"Vacances Noël & Jour de l'An 2026 -2027",null,null,null,null,null,"Vinon",null,"DT1",null,null,null,"DT2",null,null,null,"DT3",null,"L",null,null,"N",null,null,null,null,null,null,{"$f":"B3","v":"DAMES"},{"$f":"A3","v":"D"}]
["Partie Libre","Masters-N1 -N2",null,null,"04","LT1",null,null,"84","LT2",null,null,"13","LT3",null,null,"83","LT4",null,null,null,null,"06","LT5",null,null,null,"L",null,null,null,"N",null,null,null,null,null,null,null,null,null,null,null,null,null,null,{"$f":"B4","v":"Masters-N1 -N2"},{"$f":"A4","v":"Partie Libre"}]
[null,"Lieu Principal",null,null,"Vinon",null,null,null,"Carpentras",null,null,null,"Phocéen",null,null,null,"ABSRF",null,null,null,null,null,null,null,null,null,null,null,null,null,null,null,null,null,null,null,null,null,null,null,null,null,null,null,null,null,{"$f":"B5","v":"Lieu Principal"}]
[null,"Lieu bis",null,null,null,null,null,null,null,null,null,null,null,null,null,null,null,null,null,null,null,null,null,null,null,null,null,null,null,null,null,null,null,null,null,null,null,null,null,null,null,null,null,null,null,null,{"$f":"B6","v":"Lieu bis"}]
[null,"Lieu Ter",null,null,null,null,null,null,null,null,null,null,null,null,null,null,null,null,null,null,null,null,null,null,null,null,null,null,null,null,null,null,null,null,null,null,null,null,null,null,null,null,null,null,null,null,"Lieu Ter"]
[null,"Nat3-Reg1",null,null,"04","LT1",null,null,"84","LT2",null,null,"13","LT3",null,null,"83","LT4",null,null,null,null,"06","LT5",null,null,null,"L",null,null,null,"N",null,null,null,null,null,null,null,null,null,null,null,null,null,null,{"$f":"B8","v":"Nat3-Reg1"}]
[null,"Lieu Principal",null,null,"Vinon",null,null,null,"Carpentras",null,null,null,"Phocéen",null,null,null,"ABSRF",null,null,null,null,null,null,null,null,null,null,null,null,null,null,null,null,null,null,null,null,null,null,null,null,null,null,null,null,null,{"$f":"B9","v":"Lieu Principal"}]
[null,"Lieu bis",null,null,null,null,null,null,"Orange",null,null,null,null,null,null,null,null,null,null,null,null,null,null,null,null,null,null,null,null,null,null,null,null,null,null,null,null,null,null,null,null,null,null,null,null,null,{"$f":"B10","v":"Lieu bis"}]
[null,"Lieu Ter",null,null,null,null,null,null,null,null,null,null,null,null,null,null,null,null,null,null,null,null,null,null,null,null,null,null,null,null,null,null,null,null,null,null,null,null,null,null,null,null,null,null,null,null,"Lieu Ter"]
["Cadre","Masters-N1 -N2",null,"83","CT1",null,null,"13","CT2",null,null,"06","CT3",null,null,"84","CT4",null,null,null,null,null,null,"04","CT5",null,null,null,"L",null,null,null,null,"N",null,null,null,null,null,null,null,null,null,null,null,null,{"$f":"B12","v":"Masters-N1 -N2"},{"$f":"A12","v":"Cadre"}]
[null,"Lieu Principal",null,null,null,null,null,"Rognac",null,null,null,null,null,null,null,"Cavaillon",null,null,null,null,null,null,null,"Sisteron",null,null,null,null,null,null,null,null,null,null,null,null,null,null,null,null,null,null,null,null,null,null,{"$f":"B13","v":"Lieu Principal"}]
[null,"Lieu bis",null,null,null,null,null,null,null,null,null,null,null,null,null,"Carpentras",null,null,null,null,null,null,null,null,null,null,null,null,null,null,null,null,null,null,null,null,null,null,null,null,null,null,null,null,null,null,{"$f":"B14","v":"Lieu bis"}]
[null,"Lieu Ter",null,null,null,null,null,null,null,null,null,null,null,null,null,null,null,null,null,null,null,null,null,null,null,null,null,null,null,null,null,null,null,null,null,null,null,null,null,null,null,null,null,null,null,null,"Lieu Ter"]
[null,"Nat3- Reg1",null,"83","CT1",null,null,"13","CT2",null,null,"06","CT3",null,null,"84","CT4",null,null,null,null,null,null,"04","CT5",null,null,null,"L",null,null,null,null,"N",null,null,null,null,null,null,null,null,null,null,null,null,{"$f":"B16","v":"Nat3- Reg1"}]
[null,"Lieu Principal",null,null,null,null,null,"Rognac",null,null,null,null,null,null,null,"Cavaillon",null,null,null,null,null,null,null,"Sisteron",null,null,null,null,null,null,null,null,null,null,null,null,null,null,null,null,null,null,null,null,null,null,{"$f":"B17","v":"Lieu Principal"}]
[null,"Lieu bis",null,null,null,null,null,null,null,null,null,null,null,null,null,"Carpentras",null,null,null,null,null,null,null,null,null,null,null,null,null,null,null,null,null,null,null,null,null,null,null,null,null,null,null,null,null,null,{"$f":"B18","v":"Lieu bis"}]
[null,"Lieu Ter",null,null,null,null,null,null,null,null,null,null,null,null,null,null,null,null,null,null,null,null,null,null,null,null,null,null,null,null,null,null,null,null,null,null,null,null,null,null,null,null,null,null,null,null,"Lieu Ter"]
["1 Bande","Masters-N1 -N2",null,null,null,null,null,null,null,null,"13","BT1",null,null,"83","BT2",null,null,null,null,"06","BT3",null,null,"04","BT4",null,null,"84","BT5",null,null,null,"L",null,null,null,"N",null,null,null,null,null,null,null,null,{"$f":"B20","v":"Masters-N1 -N2"},{"$f":"A20","v":"1 Bande"}]
[null,"Lieu Principal",null,null,null,null,null,null,null,null,"Sausset",null,null,null,null,null,null,null,null,null,null,null,null,null,"Vinon",null,null,null,"Cavaillon",null,null,null,null,null,null,null,null,null,null,null,null,null,null,null,null,null,{"$f":"B21","v":"Lieu Principal"}]
[null,"Lieu bis",null,null,null,null,null,null,null,null,"Phocéen",null,null,null,null,null,null,null,null,null,null,null,null,null,null,null,null,null,null,null,null,null,null,null,null,null,null,null,null,null,null,null,null,null,null,null,{"$f":"B22","v":"Lieu bis"}]
[null,"Lieu Ter",null,null,null,null,null,null,null,null,null,null,null,null,null,null,null,null,null,null,null,null,null,null,null,null,null,null,null,null,null,null,null,null,null,null,null,null,null,null,null,null,null,null,null,null,"Lieu Ter"]
[null,"Nat3-Reg1",null,null,null,null,null,null,null,null,"13","BT1",null,null,"83","BT2",null,null,null,null,"06","BT3",null,null,"04","BT4",null,null,"84","BT5",null,null,null,"L",null,null,null,"N",null,null,null,null,null,null,null,null,{"$f":"B24","v":"Nat3-Reg1"}]
[null,"Lieu Principal",null,null,null,null,null,null,null,null,"Sausset",null,null,null,null,null,null,null,null,null,null,null,null,null,"Vinon",null,null,null,"Cavaillon",null,null,null,null,null,null,null,null,null,null,null,null,null,null,null,null,null,{"$f":"B25","v":"Lieu Principal"}]
[null,"Lieu bis",null,null,null,null,null,null,null,null,"Phocéen",null,null,null,null,null,null,null,null,null,null,null,null,null,null,null,null,null,"Orange",null,null,null,null,null,null,null,null,null,null,null,null,null,null,null,null,null,{"$f":"B26","v":"Lieu bis"}]
[null,"Lieu Ter",null,null,null,null,null,null,null,null,null,null,null,null,null,null,null,null,null,null,null,null,null,null,null,null,null,null,null,null,null,null,null,null,null,null,null,null,null,null,null,null,null,null,null,null,"Lieu Ter"]
["3 Bandes","Masters-N1 -N2",null,null,null,null,null,null,null,"83","3BT1",null,null,"84","3BT2",null,null,null,null,null,null,"04","3BT3",null,null,"06","3BT4",null,null,"13","3BT5",null,"L",null,null,"ZONE",null,null,null,"N",null,null,null,null,null,null,{"$f":"B28","v":"Masters-N1 -N2"},{"$f":"A28","v":"3 Bandes"}]
[null,"Lieu Principal",null,null,null,null,null,null,null,"ABSRF",null,null,null,"Cavaillon",null,null,null,null,null,null,null,"Sisteron",null,null,null,null,null,null,null,"La Fare",null,null,null,null,null,null,null,null,null,null,null,null,null,null,null,null,{"$f":"B29","v":"Lieu Principal"}]
[null,"Lieu bis",null,null,null,null,null,null,null,null,null,null,null,"Carpentras",null,null,null,null,null,null,null,null,null,null,null,null,null,null,null,"Rognac",null,null,null,null,null,null,null,null,null,null,null,null,null,null,null,null,{"$f":"B30","v":"Lieu bis"}]
[null,"Lieu Ter",null,null,null,null,null,null,null,null,null,null,null,null,null,null,null,null,null,null,null,null,null,null,null,null,null,null,null,null,null,null,null,null,null,null,null,null,null,null,null,null,null,null,null,null,"Lieu Ter"]
[null,"Nat3-Reg1",null,null,null,null,null,null,null,"83","3BT1",null,null,"84","3BT2",null,null,null,null,null,null,"04","3BT3",null,null,"06","3BT4",null,null,"13","3BT5",null,null,null,null,"L",null,null,null,"N",null,null,null,null,null,null,{"$f":"B32","v":"Nat3-Reg1"}]
[null,"Lieu Principal",null,null,null,null,null,null,null,"ABSRF",null,null,null,"Cavaillon",null,null,null,null,null,null,null,"Sisteron",null,null,null,null,null,null,null,"La Fare",null,null,null,null,null,null,null,null,null,null,null,null,null,null,null,null,{"$f":"B33","v":"Lieu Principal"}]
[null,"Lieu bis",null,null,null,null,null,null,null,null,null,null,null,"Carpentras",null,null,null,null,null,null,null,null,null,null,null,null,null,null,null,"Rognac",null,null,null,null,null,null,null,null,null,null,null,null,null,null,null,null,{"$f":"B34","v":"Lieu bis"}]
[null,"Lieu Ter",null,null,null,null,null,null,null,null,null,null,null,null,null,null,null,null,null,null,null,null,null,null,null,null,null,null,null,null,null,null,null,null,null,null,null,null,null,null,null,null,null,null,null,null,"Lieu Ter"]
["JD Séries","FÉDÉRAL 2",null,null,null,null,null,null,null,null,null,"JDS1",null,null,null,"JDS2",null,null,null,null,null,"JDS3",null,null,null,"JDS4",null,null,null,"JDS5",null,null,null,null,"L",null,null,null,"EN",null,null,null,"N",null,null,null,{"$f":"B36","v":"FÉDÉRAL 2"},{"$f":"A36","v":"JD Séries"}]
[null,"FÉDÉRAL 3",null,null,null,null,null,null,null,null,null,null,null,null,null,null,null,null,null,null,null,null,null,null,null,null,null,null,null,null,null,null,null,null,"L",null,null,null,"EN",null,null,null,"N",null,null,null,"FÉDÉRAL 3"]
[null,"FÉDÉRAL 4",null,null,null,null,null,null,null,null,null,null,null,null,null,null,null,null,null,null,null,null,null,null,null,null,null,null,null,null,null,null,null,null,"L",null,null,null,"EN",null,null,null,"N",null,null,null,"FÉDÉRAL 4"]
["JD 3Bandes","FÉDÉRAL 2",null,null,null,null,null,null,null,null,null,null,"3BT1",null,null,null,"3BT2",null,null,null,null,null,"3BT3",null,null,null,"3BT4",null,null,null,"3BT5",null,null,null,null,null,"L",null,null,null,"EN",null,null,null,"N",null,"FÉDÉRAL 2",{"$f":"A39","v":"JD 3Bandes"}]
[null,"FÉDÉRAL 3",null,null,null,null,null,null,null,null,null,null,null,null,null,null,null,null,null,null,null,null,null,null,null,null,null,null,null,null,null,null,null,null,null,null,"L",null,null,null,"EN",null,null,null,"N",null,"FÉDÉRAL 3"]
[null,"FÉDÉRAL 4",null,null,null,null,null,null,null,null,null,null,null,null,null,null,null,null,null,null,null,null,null,null,null,null,null,null,null,null,null,null,null,null,null,null,"L",null,null,null,"EN",null,null,null,"N",null,"FÉDÉRAL 4"]
["5 Quilles","Masters-N1 -N2",null,null,null,null,"TN1","FREJUS-St RAPHAEL",null,null,null,null,null,null,null,null,null,null,null,null,null,null,null,"?","5QT1",null,null,"?","5QT2",null,null,null,"?","5QT3",null,null,null,null,"L",null,null,null,null,"N",null,null,"Masters-N1 -N2","5 Quilles"]
[]
["CR",null,null,null,null,null,null,null,null,null,null,null,null,null,null,null,null,null,null,null,null,null,null,null,null,null,null,null,null,null,null,null,null,null,null,null,null,null,null,null,null,null,null,null,null,"N",null,"CR"]
[{"$f":"A1","v":"Calendrier  LMB\n2026-2027"},null,{"$f":"C2","v":5},12,19,26,3,10,17,24,31,7,14,21,28,5,12,19,26,1,2,9,16,23,30,6,13,20,27,6,13,20,27,3,10,17,24,{"$f":"AL2","v":1},{"$f":"AM2","v":8},15,22,29,5,12,19,26,{"$f":"AU1","v":"Version\n"}]
[null,null,{"$f":"C1","v":"Septembre"},null,null,null,{"$f":"G1","v":"Octobre"},null,null,null,null,{"$f":"L1","v":"Novembre"},null,null,null,{"$f":"P1","v":"Décembre"},null,null,{"$f":"S1","v":"N&A"},null,{"$f":"U1","v":"Janvier"},null,null,null,null,"Février",null,null,null,{"$f":"AD1","v":"Mars"},null,null,null,{"$f":"AH1","v":"Avril"},null,null,null,{"$f":"AL1","v":"Mai"},null,null,null,null,{"$f":"AQ1","v":"Juin"},null,null,null,{"$f":"AU2","v":"X9"}]